[Event "Titled Tuesday Blitz November 30 2021"]
[White "Alinasab, Mobina"]
[Black "Le, Tuan Minh"]
[WhiteFideId "12528897"]
[BlackFideId "12401153"]
[WhiteElo "2061"]
[BlackElo "2450"]
[Result "1-0"]
[Round "01"]
[TimeControl "180+1"]
[Date "2021.11.30"]
[WhiteClock "0:00:23"]
[BlackClock "0:00:25"]

1. e4 {[%clk 0:03:00]}  c5 {[%clk 0:02:50]} 2. Nf3 {[%clk 0:02:57]}  Nf6 {[%clk 0:02:50]} 3. e5 {[%clk 0:02:56]}  Nd5 {[%clk 0:02:50]} 4. Nc3 {[%clk 0:02:55]}  e6 {[%clk 0:02:50]} 5. Ne4 {[%clk 0:02:53]}  f5 {[%clk 0:02:50]} 6. Nc3 {[%clk 0:02:38]}  Ne7 {[%clk 0:02:48]} 7. d4 {[%clk 0:02:34]}  cxd4 {[%clk 0:02:47]} 8. Nxd4 {[%clk 0:02:33]}  a6 {[%clk 0:02:47]} 9. f4 {[%clk 0:02:24]}  Nbc6 {[%clk 0:02:46]} 10. Be3 {[%clk 0:02:24]}  Nxd4 {[%clk 0:02:41]} 11. Qxd4 {[%clk 0:02:20]}  Nc6 {[%clk 0:02:42]} 12. Qb6 {[%clk 0:02:19]}  Qxb6 {[%clk 0:02:03]} 13. Bxb6 {[%clk 0:02:20]}  d6 {[%clk 0:02:04]} 14. exd6 {[%clk 0:02:15]}  Bxd6 {[%clk 0:02:05]} 15. g3 {[%clk 0:02:15]}  Bd7 {[%clk 0:01:45]} 16. O-O-O {[%clk 0:02:14]}  Be7 {[%clk 0:01:40]} 17. Bc4 {[%clk 0:02:02]}  Bd8 {[%clk 0:01:35]} 18. Bxd8 {[%clk 0:01:32]}  Nxd8 {[%clk 0:01:13]} 19. Rd6 {[%clk 0:01:31]}  Rc8 {[%clk 0:01:13]} 20. Bb3 {[%clk 0:01:28]}  Ke7 {[%clk 0:01:11]} 21. Rhd1 {[%clk 0:01:09]}  Rc7 {[%clk 0:01:11]} 22. a4 {[%clk 0:01:04]}  Nf7 {[%clk 0:01:06]} 23. R6d4 {[%clk 0:01:02]}  Rd8 {[%clk 0:01:03]} 24. Re1 {[%clk 0:00:59]}  Kf6 {[%clk 0:00:59]} 25. Rxd7 {[%clk 0:00:53]}  Rc6 {[%clk 0:00:46]} 26. Rxd8 {[%clk 0:00:44]}  Nxd8 {[%clk 0:00:47]} 27. Ne2 {[%clk 0:00:43]}  e5 {[%clk 0:00:25]} 28. fxe5+ {[%clk 0:00:43]}  Kxe5 {[%clk 0:00:26]} 29. Nf4+ {[%clk 0:00:42]}  Kf6 {[%clk 0:00:26]} 30. Re8 {[%clk 0:00:40]}  Rd6 {[%clk 0:00:26]} 31. Nd5+ {[%clk 0:00:36]}  Kg5 {[%clk 0:00:26]} 32. Re7 {[%clk 0:00:36]}  g6 {[%clk 0:00:25]} 33. Rxh7 {[%clk 0:00:34]}  b5 {[%clk 0:00:25]} 34. axb5 {[%clk 0:00:30]}  axb5 {[%clk 0:00:26]} 35. c3 {[%clk 0:00:30]}  Nc6 {[%clk 0:00:26]} 36. Nf4 {[%clk 0:00:26]}  Ne5 {[%clk 0:00:26]} 37. Bd1 {[%clk 0:00:24]}  Nc4 {[%clk 0:00:26]} 38. Be2 {[%clk 0:00:24]}  Ne3 {[%clk 0:00:26]} 39. Bf3 {[%clk 0:00:23]}  Nc4 {[%clk 0:00:25]} 40. Nd5 {[%clk 0:00:23]}  Ne5 {[%clk 0:00:25]} 41. h4# {[%clk 0:00:23]} 1-0


[Site "https://www.chess.com"]

[Event "Titled Tuesday Blitz November 30 2021"]
[White "Babazada, Khazar"]
[Black "Bethke, Richard"]
[WhiteFideId "13413554"]
[BlackFideId "12959243"]
[WhiteElo "2302"]
[BlackElo "2453"]
[Result "1-0"]
[Round "01"]
[TimeControl "180+1"]
[Date "2021.11.30"]
[WhiteClock "0:00:05"]
[BlackClock "0:00:01"]

1. e4 {[%clk 0:03:00]}  c5 {[%clk 0:02:56]} 2. Nf3 {[%clk 0:03:00]}  d6 {[%clk 0:02:53]} 3. d4 {[%clk 0:03:01]}  cxd4 {[%clk 0:02:53]} 4. Nxd4 {[%clk 0:03:00]}  Nf6 {[%clk 0:02:54]} 5. Nc3 {[%clk 0:02:59]}  a6 {[%clk 0:02:54]} 6. h3 {[%clk 0:02:59]}  e5 {[%clk 0:02:54]} 7. Nde2 {[%clk 0:02:58]}  h5 {[%clk 0:02:53]} 8. Bg5 {[%clk 0:02:55]}  Be6 {[%clk 0:02:53]} 9. Bxf6 {[%clk 0:02:54]}  Qxf6 {[%clk 0:02:53]} 10. Nd5 {[%clk 0:02:55]}  Qd8 {[%clk 0:02:53]} 11. Qd3 {[%clk 0:02:54]}  g6 {[%clk 0:02:50]} 12. O-O-O {[%clk 0:02:54]}  Nc6 {[%clk 0:02:49]} 13. Kb1 {[%clk 0:02:53]}  Rc8 {[%clk 0:02:44]} 14. f4 {[%clk 0:02:52]}  Qa5 {[%clk 0:02:37]} 15. a3 {[%clk 0:02:42]}  Bg7 {[%clk 0:02:28]} 16. g3 {[%clk 0:02:07]}  O-O {[%clk 0:02:16]} 17. Bg2 {[%clk 0:01:59]}  f5 {[%clk 0:02:15]} 18. Rhf1 {[%clk 0:01:50]}  b5 {[%clk 0:02:05]} 19. Qb3 {[%clk 0:01:41]}  Kh8 {[%clk 0:01:54]} 20. g4 {[%clk 0:01:37]}  fxg4 {[%clk 0:01:51]} 21. hxg4 {[%clk 0:01:33]}  Bxg4 {[%clk 0:01:52]} 22. Bf3 {[%clk 0:01:33]}  Bxf3 {[%clk 0:01:42]} 23. Qxf3 {[%clk 0:01:27]}  b4 {[%clk 0:01:41]} 24. f5 {[%clk 0:01:13]}  bxa3 {[%clk 0:01:38]} 25. b3 {[%clk 0:01:13]}  Nb4 {[%clk 0:01:11]} 26. Nec3 {[%clk 0:00:42]}  a2+ {[%clk 0:00:55]} 27. Kb2 {[%clk 0:00:39]}  Rxf5 {[%clk 0:00:26]} 28. Qh3 {[%clk 0:00:23]}  Rxf1 {[%clk 0:00:16]} 29. Rxf1 {[%clk 0:00:20]}  Rf8 {[%clk 0:00:14]} 30. Ra1 {[%clk 0:00:18]}  Rf2 {[%clk 0:00:12]} 31. Nxb4 {[%clk 0:00:14]}  Qxb4 {[%clk 0:00:13]} 32. Qg3 {[%clk 0:00:13]}  Rf6 {[%clk 0:00:03]} 33. Rxa2 {[%clk 0:00:12]}  Qd4 {[%clk 0:00:03]} 34. Ra4 {[%clk 0:00:12]}  Qc5 {[%clk 0:00:02]} 35. Nd5 {[%clk 0:00:11]}  Re6 {[%clk 0:00:02]} 36. Rc4 {[%clk 0:00:11]}  Qa5 {[%clk 0:00:02]} 37. Rc8+ {[%clk 0:00:04]}  Kh7 {[%clk 0:00:02]} 38. Qh3 {[%clk 0:00:04]}  Qb5 {[%clk 0:00:01]} 39. Qxe6 {[%clk 0:00:04]}  Qb4 {[%clk 0:00:01]} 40. Qg8+ {[%clk 0:00:04]}  Kh6 {[%clk 0:00:01]} 41. Nxb4 {[%clk 0:00:05]} 1-0


[Site "https://www.chess.com"]

[Event "Titled Tuesday Blitz November 30 2021"]
[White "Demchenko, Anton"]
[Black "Kuegel, Tobias"]
[WhiteFideId "4160258"]
[BlackFideId "4636295"]
[WhiteElo "2583"]
[BlackElo "2213"]
[Result "1-0"]
[Round "01"]
[TimeControl "180+1"]
[Date "2021.11.30"]
[WhiteClock "0:01:39"]
[BlackClock "0:00:05"]

1. e4 {[%clk 0:03:00]}  e5 {[%clk 0:02:58]} 2. Nf3 {[%clk 0:03:00]}  Nc6 {[%clk 0:02:53]} 3. Bc4 {[%clk 0:03:01]}  Bc5 {[%clk 0:02:52]} 4. d3 {[%clk 0:03:01]}  Nf6 {[%clk 0:02:50]} 5. Bg5 {[%clk 0:03:02]}  h6 {[%clk 0:02:48]} 6. Bh4 {[%clk 0:03:02]}  O-O {[%clk 0:02:49]} 7. c3 {[%clk 0:02:58]}  Be7 {[%clk 0:02:49]} 8. Nbd2 {[%clk 0:02:56]}  Nh5 {[%clk 0:02:47]} 9. Bg3 {[%clk 0:02:55]}  Nxg3 {[%clk 0:02:26]} 10. fxg3 {[%clk 0:02:52]}  d6 {[%clk 0:02:25]} 11. a4 {[%clk 0:02:51]}  Be6 {[%clk 0:02:19]} 12. Bxe6 {[%clk 0:02:50]}  fxe6 {[%clk 0:02:19]} 13. O-O {[%clk 0:02:50]}  d5 {[%clk 0:02:10]} 14. h3 {[%clk 0:02:49]}  a5 {[%clk 0:01:50]} 15. Qb3 {[%clk 0:02:43]}  Qd7 {[%clk 0:01:38]} 16. Kh2 {[%clk 0:02:39]}  Rf7 {[%clk 0:01:22]} 17. Rae1 {[%clk 0:02:38]}  Bf6 {[%clk 0:01:19]} 18. Rf2 {[%clk 0:02:30]}  Re8 {[%clk 0:00:50]} 19. Rfe2 {[%clk 0:02:30]}  b6 {[%clk 0:00:48]} 20. Qb5 {[%clk 0:02:28]}  Rfe7 {[%clk 0:00:43]} 21. Kh1 {[%clk 0:02:23]}  Nb8 {[%clk 0:00:39]} 22. h4 {[%clk 0:02:10]}  Qxb5 {[%clk 0:00:30]} 23. axb5 {[%clk 0:02:11]}  h5 {[%clk 0:00:27]} 24. d4 {[%clk 0:02:07]}  Nd7 {[%clk 0:00:21]} 25. Kh2 {[%clk 0:01:59]}  g6 {[%clk 0:00:12]} 26. Kh3 {[%clk 0:01:54]}  Kg7 {[%clk 0:00:12]} 27. g4 {[%clk 0:01:43]}  hxg4+ {[%clk 0:00:12]} 28. Kxg4 {[%clk 0:01:44]}  dxe4 {[%clk 0:00:08]} 29. Nxe4 {[%clk 0:01:44]}  exd4 {[%clk 0:00:09]} 30. cxd4 {[%clk 0:01:45]}  e5 {[%clk 0:00:09]} 31. d5 {[%clk 0:01:43]}  Kf7 {[%clk 0:00:05]} 32. d6 {[%clk 0:01:39]} 1-0


[Site "https://www.chess.com"]

[Event "Titled Tuesday Blitz November 30 2021"]
[White "Florescu, Codrut-Constantin"]
[Black "Terry, Renato"]
[WhiteFideId "1202200"]
[BlackFideId "3803457"]
[WhiteElo "2243"]
[BlackElo "2577"]
[Result "0-1"]
[Round "01"]
[TimeControl "180+1"]
[Date "2021.11.30"]
[WhiteClock "0:00:39"]
[BlackClock "0:00:41"]

1. d4 {[%clk 0:03:00]}  e6 {[%clk 0:02:59]} 2. c4 {[%clk 0:03:00]}  Bb4+ {[%clk 0:02:58]} 3. Nd2 {[%clk 0:02:58]}  Nf6 {[%clk 0:02:59]} 4. a3 {[%clk 0:02:56]}  Be7 {[%clk 0:02:58]} 5. e4 {[%clk 0:02:56]}  d6 {[%clk 0:02:59]} 6. Ngf3 {[%clk 0:02:55]}  Nbd7 {[%clk 0:02:57]} 7. Bd3 {[%clk 0:02:54]}  e5 {[%clk 0:02:57]} 8. d5 {[%clk 0:02:52]}  a5 {[%clk 0:02:57]} 9. b3 {[%clk 0:02:52]}  Nc5 {[%clk 0:02:56]} 10. Bc2 {[%clk 0:02:52]}  O-O {[%clk 0:02:56]} 11. O-O {[%clk 0:02:45]}  g6 {[%clk 0:02:56]} 12. Re1 {[%clk 0:02:44]}  Nh5 {[%clk 0:02:56]} 13. g3 {[%clk 0:02:43]}  Bg4 {[%clk 0:02:54]} 14. Bb2 {[%clk 0:02:26]}  Bg5 {[%clk 0:02:30]} 15. b4 {[%clk 0:02:12]}  axb4 {[%clk 0:02:22]} 16. axb4 {[%clk 0:02:11]}  Na6 {[%clk 0:02:23]} 17. Bc3 {[%clk 0:02:08]}  f5 {[%clk 0:02:19]} 18. exf5 {[%clk 0:02:05]}  gxf5 {[%clk 0:02:20]} 19. h3 {[%clk 0:01:54]}  Bxh3 {[%clk 0:02:18]} 20. Nxe5 {[%clk 0:01:51]}  Nxg3 {[%clk 0:01:41]} 21. fxg3 {[%clk 0:01:48]}  dxe5 {[%clk 0:01:42]} 22. Nf3 {[%clk 0:01:40]}  e4 {[%clk 0:01:34]} 23. Nxg5 {[%clk 0:01:18]}  Qxg5 {[%clk 0:01:34]} 24. Kh2 {[%clk 0:01:18]}  Bg4 {[%clk 0:01:15]} 25. Qd4 {[%clk 0:01:17]}  Qh6+ {[%clk 0:01:15]} 26. Kg1 {[%clk 0:01:16]}  Bf3 {[%clk 0:01:12]} 27. Kf2 {[%clk 0:01:01]}  Qh2+ {[%clk 0:01:11]} 28. Ke3 {[%clk 0:01:01]}  Qh6+ {[%clk 0:01:11]} 29. Kf2 {[%clk 0:01:00]}  f4 {[%clk 0:00:59]} 30. Rh1 {[%clk 0:00:39]}  fxg3+ {[%clk 0:00:49]} 31. Kxg3 {[%clk 0:00:39]}  Qg5+ {[%clk 0:00:47]} 32. Kf2 {[%clk 0:00:39]}  Qg2+ {[%clk 0:00:41]} 0-1


[Site "https://www.chess.com"]

[Event "Titled Tuesday Blitz November 30 2021"]
[White "Gokerkan, Cem Kaan"]
[Black "Petukhov, Dmitry"]
[WhiteFideId "6336760"]
[BlackFideId "4142748"]
[WhiteElo "2382"]
[BlackElo "2356"]
[Result "1-0"]
[Round "01"]
[TimeControl "180+1"]
[Date "2021.11.30"]
[WhiteClock "0:00:21"]
[BlackClock "0:00:19"]

1. Nf3 {[%clk 0:03:00]}  Nf6 {[%clk 0:02:58]} 2. g3 {[%clk 0:03:01]}  g6 {[%clk 0:02:58]} 3. Bg2 {[%clk 0:03:02]}  Bg7 {[%clk 0:02:58]} 4. O-O {[%clk 0:03:02]}  O-O {[%clk 0:02:59]} 5. b3 {[%clk 0:03:02]}  d5 {[%clk 0:02:59]} 6. Bb2 {[%clk 0:03:03]}  c5 {[%clk 0:03:00]} 7. c4 {[%clk 0:02:57]}  d4 {[%clk 0:03:00]} 8. e3 {[%clk 0:02:57]}  Nc6 {[%clk 0:03:00]} 9. exd4 {[%clk 0:02:58]}  cxd4 {[%clk 0:03:01]} 10. Re1 {[%clk 0:02:58]}  Re8 {[%clk 0:02:54]} 11. a3 {[%clk 0:02:44]}  a5 {[%clk 0:02:53]} 12. b4 {[%clk 0:02:18]}  axb4 {[%clk 0:02:50]} 13. axb4 {[%clk 0:02:19]}  Rxa1 {[%clk 0:02:41]} 14. Bxa1 {[%clk 0:02:19]}  Nxb4 {[%clk 0:02:41]} 15. Bxd4 {[%clk 0:02:19]}  Bg4 {[%clk 0:02:33]} 16. Bc3 {[%clk 0:02:16]}  Nd3 {[%clk 0:02:34]} 17. Re3 {[%clk 0:02:15]}  e5 {[%clk 0:02:07]} 18. h3 {[%clk 0:02:10]}  Bxf3 {[%clk 0:02:02]} 19. Qxf3 {[%clk 0:02:11]}  e4 {[%clk 0:02:01]} 20. Bxf6 {[%clk 0:02:01]}  Qb6 {[%clk 0:01:26]} 21. Rxe4 {[%clk 0:00:51]}  Qxb1+ {[%clk 0:01:19]} 22. Bf1 {[%clk 0:00:45]}  Rxe4 {[%clk 0:01:20]} 23. Qxe4 {[%clk 0:00:44]}  Bxf6 {[%clk 0:01:08]} 24. Qxd3 {[%clk 0:00:44]}  Qxd3 {[%clk 0:01:04]} 25. Bxd3 {[%clk 0:00:45]}  Bd4 {[%clk 0:01:03]} 26. Be4 {[%clk 0:00:44]}  b6 {[%clk 0:01:03]} 27. Kf1 {[%clk 0:00:43]}  f5 {[%clk 0:01:02]} 28. Bd5+ {[%clk 0:00:43]}  Kg7 {[%clk 0:01:03]} 29. Ke2 {[%clk 0:00:44]}  Kf6 {[%clk 0:01:02]} 30. f4 {[%clk 0:00:40]}  h6 {[%clk 0:01:01]} 31. h4 {[%clk 0:00:35]}  g5 {[%clk 0:00:56]} 32. fxg5+ {[%clk 0:00:36]}  hxg5 {[%clk 0:00:57]} 33. h5 {[%clk 0:00:37]}  g4 {[%clk 0:00:53]} 34. h6 {[%clk 0:00:31]}  Kg6 {[%clk 0:00:48]} 35. Be6 {[%clk 0:00:31]}  Be5 {[%clk 0:00:45]} 36. h7 {[%clk 0:00:29]}  Kxh7 {[%clk 0:00:44]} 37. Bxf5+ {[%clk 0:00:30]}  Kg7 {[%clk 0:00:44]} 38. Kf2 {[%clk 0:00:29]}  Kf6 {[%clk 0:00:43]} 39. Bxg4 {[%clk 0:00:29]}  Kg5 {[%clk 0:00:41]} 40. Bd7 {[%clk 0:00:29]}  Bd4+ {[%clk 0:00:42]} 41. Kf3 {[%clk 0:00:29]}  Bc5 {[%clk 0:00:40]} 42. Ke4 {[%clk 0:00:28]}  Bd6 {[%clk 0:00:39]} 43. g4 {[%clk 0:00:29]}  Kf6 {[%clk 0:00:35]} 44. Kd5 {[%clk 0:00:29]}  Bg3 {[%clk 0:00:30]} 45. Bf5 {[%clk 0:00:25]}  Bf2 {[%clk 0:00:29]} 46. d4 {[%clk 0:00:23]}  Ke7 {[%clk 0:00:29]} 47. c5 {[%clk 0:00:21]}  bxc5 {[%clk 0:00:29]} 48. dxc5 {[%clk 0:00:22]}  Be3 {[%clk 0:00:29]} 49. Kc6 {[%clk 0:00:22]}  Kd8 {[%clk 0:00:23]} 50. Kd6 {[%clk 0:00:20]}  Bf4+ {[%clk 0:00:19]} 51. Ke6 {[%clk 0:00:20]}  Kc7 {[%clk 0:00:20]} 52. Be4 {[%clk 0:00:20]}  Be3 {[%clk 0:00:19]} 53. c6 {[%clk 0:00:20]}  Bf4 {[%clk 0:00:19]} 54. Kf6 {[%clk 0:00:20]}  Kd6 {[%clk 0:00:20]} 55. g5 {[%clk 0:00:21]}  Be5+ {[%clk 0:00:19]} 56. Kf7 {[%clk 0:00:21]} 1-0


[Site "https://www.chess.com"]

[Event "Titled Tuesday Blitz November 30 2021"]
[White "Gunduz, Umut Erdem"]
[Black "Pranav, V"]
[WhiteFideId "6381383"]
[BlackFideId "25060783"]
[WhiteElo "2096"]
[BlackElo "2351"]
[Result "0-1"]
[Round "01"]
[TimeControl "180+1"]
[Date "2021.11.30"]
[WhiteClock "0:00:07"]
[BlackClock "0:00:43"]

1. e4 {[%clk 0:02:59]}  e5 {[%clk 0:02:59]} 2. Nf3 {[%clk 0:02:59]}  Nc6 {[%clk 0:03:00]} 3. Bb5 {[%clk 0:02:59]}  a6 {[%clk 0:03:00]} 4. Ba4 {[%clk 0:02:59]}  d6 {[%clk 0:03:01]} 5. O-O {[%clk 0:02:58]}  Bd7 {[%clk 0:03:00]} 6. d4 {[%clk 0:02:58]}  exd4 {[%clk 0:02:56]} 7. Nxd4 {[%clk 0:02:56]}  b5 {[%clk 0:02:57]} 8. Nxc6 {[%clk 0:02:53]}  Bxc6 {[%clk 0:02:57]} 9. Bb3 {[%clk 0:02:53]}  Nf6 {[%clk 0:02:58]} 10. Nc3 {[%clk 0:02:52]}  Be7 {[%clk 0:02:57]} 11. Re1 {[%clk 0:02:45]}  O-O {[%clk 0:02:55]} 12. Bf4 {[%clk 0:02:43]}  Nd7 {[%clk 0:02:53]} 13. Nd5 {[%clk 0:02:41]}  Bf6 {[%clk 0:02:49]} 14. c3 {[%clk 0:02:36]}  Re8 {[%clk 0:02:44]} 15. Qg4 {[%clk 0:02:23]}  Nf8 {[%clk 0:02:35]} 16. Rad1 {[%clk 0:02:16]}  Ng6 {[%clk 0:02:32]} 17. Bg3 {[%clk 0:02:12]}  a5 {[%clk 0:02:17]} 18. h4 {[%clk 0:01:47]}  a4 {[%clk 0:02:09]} 19. Bc2 {[%clk 0:01:46]}  Bxd5 {[%clk 0:01:44]} 20. exd5 {[%clk 0:01:33]}  Rxe1+ {[%clk 0:01:44]} 21. Rxe1 {[%clk 0:01:34]}  Nxh4 {[%clk 0:01:45]} 22. Bxh4 {[%clk 0:01:08]}  Bxh4 {[%clk 0:01:46]} 23. Re3 {[%clk 0:01:05]}  g6 {[%clk 0:01:40]} 24. Bd3 {[%clk 0:01:00]}  Bg5 {[%clk 0:01:34]} 25. Re2 {[%clk 0:00:55]}  Rb8 {[%clk 0:01:21]} 26. f4 {[%clk 0:00:51]}  Bf6 {[%clk 0:01:19]} 27. g3 {[%clk 0:00:44]}  Kg7 {[%clk 0:01:17]} 28. Kg2 {[%clk 0:00:44]}  b4 {[%clk 0:01:13]} 29. c4 {[%clk 0:00:43]}  b3 {[%clk 0:01:09]} 30. a3 {[%clk 0:00:39]}  Bd4 {[%clk 0:01:06]} 31. f5 {[%clk 0:00:33]}  Qf6 {[%clk 0:01:05]} 32. fxg6 {[%clk 0:00:28]}  hxg6 {[%clk 0:01:06]} 33. Bxg6 {[%clk 0:00:19]}  fxg6 {[%clk 0:00:52]} 34. Qd7+ {[%clk 0:00:19]}  Kg8 {[%clk 0:00:45]} 35. Re7 {[%clk 0:00:07]}  Qf2+ {[%clk 0:00:43]} 36. Kh3 {[%clk 0:00:07]}  Qf5+ {[%clk 0:00:43]} 0-1


[Site "https://www.chess.com"]

[Event "Titled Tuesday Blitz November 30 2021"]
[White "Ingebretsen, Jens E"]
[Black "Tang, Andrew"]
[WhiteFideId "1522965"]
[BlackFideId "2059630"]
[WhiteElo "2072"]
[BlackElo "2588"]
[Result "0-1"]
[Round "01"]
[TimeControl "180+1"]
[Date "2021.11.30"]
[WhiteClock "0:00:55"]
[BlackClock "0:01:47"]

1. d4 {[%clk 0:02:57]}  d5 {[%clk 0:02:57]} 2. Bf4 {[%clk 0:02:58]}  Nf6 {[%clk 0:02:46]} 3. c4 {[%clk 0:02:58]}  e6 {[%clk 0:02:34]} 4. Nc3 {[%clk 0:02:58]}  Be7 {[%clk 0:02:33]} 5. Nf3 {[%clk 0:02:58]}  O-O {[%clk 0:02:33]} 6. e3 {[%clk 0:02:59]}  b6 {[%clk 0:02:27]} 7. cxd5 {[%clk 0:02:55]}  Nxd5 {[%clk 0:02:27]} 8. Nxd5 {[%clk 0:02:53]}  exd5 {[%clk 0:02:28]} 9. Bd3 {[%clk 0:02:53]}  c5 {[%clk 0:02:27]} 10. O-O {[%clk 0:02:52]}  Nc6 {[%clk 0:02:19]} 11. a3 {[%clk 0:02:51]}  c4 {[%clk 0:02:20]} 12. Bc2 {[%clk 0:02:47]}  b5 {[%clk 0:02:20]} 13. e4 {[%clk 0:02:44]}  Be6 {[%clk 0:02:19]} 14. Qe2 {[%clk 0:02:37]}  Re8 {[%clk 0:02:19]} 15. Rad1 {[%clk 0:02:26]}  a5 {[%clk 0:02:17]} 16. Bb1 {[%clk 0:02:18]}  b4 {[%clk 0:02:16]} 17. Qc2 {[%clk 0:02:07]}  g6 {[%clk 0:02:13]} 18. Rfe1 {[%clk 0:02:03]}  bxa3 {[%clk 0:02:08]} 19. b3 {[%clk 0:01:50]}  Nb4 {[%clk 0:02:01]} 20. Qc3 {[%clk 0:01:27]}  a2 {[%clk 0:01:58]} 21. Bc2 {[%clk 0:01:27]}  Rc8 {[%clk 0:01:56]} 22. Qb2 {[%clk 0:01:06]}  c3 {[%clk 0:01:51]} 23. Qc1 {[%clk 0:01:01]}  dxe4 {[%clk 0:01:48]} 24. Bxe4 {[%clk 0:00:55]}  Bxb3 {[%clk 0:01:47]} 0-1


[Site "https://www.chess.com"]

[Event "Titled Tuesday Blitz November 30 2021"]
[White "Jary, Sergey"]
[Black "Ostrovskiy, Aleksandr"]
[WhiteFideId "14110350"]
[BlackFideId "2034239"]
[WhiteElo "2260"]
[BlackElo "2340"]
[Result "1/2-1/2"]
[Round "01"]
[TimeControl "180+1"]
[Date "2021.11.30"]
[WhiteClock "0:01:36"]
[BlackClock "0:00:41"]

1. e4 {[%clk 0:02:55]}  d5 {[%clk 0:02:59]} 2. exd5 {[%clk 0:02:55]}  Nf6 {[%clk 0:03:00]} 3. Nf3 {[%clk 0:02:55]}  Bg4 {[%clk 0:02:59]} 4. Be2 {[%clk 0:02:56]}  Qxd5 {[%clk 0:02:59]} 5. d4 {[%clk 0:02:42]}  Nc6 {[%clk 0:02:57]} 6. O-O {[%clk 0:02:37]}  O-O-O {[%clk 0:02:56]} 7. Be3 {[%clk 0:02:37]}  Qf5 {[%clk 0:02:47]} 8. c4 {[%clk 0:02:34]}  e5 {[%clk 0:02:34]} 9. d5 {[%clk 0:02:34]}  e4 {[%clk 0:02:30]} 10. Nd4 {[%clk 0:02:34]}  Nxd4 {[%clk 0:02:26]} 11. Bxd4 {[%clk 0:02:33]}  h5 {[%clk 0:02:04]} 12. Nc3 {[%clk 0:02:29]}  Bd6 {[%clk 0:01:59]} 13. Nb5 {[%clk 0:02:17]}  a6 {[%clk 0:01:40]} 14. Nxd6+ {[%clk 0:02:16]}  Rxd6 {[%clk 0:01:41]} 15. Re1 {[%clk 0:02:10]}  Rhd8 {[%clk 0:01:36]} 16. Rc1 {[%clk 0:02:05]}  Kb8 {[%clk 0:01:33]} 17. b4 {[%clk 0:02:01]}  Nxd5 {[%clk 0:01:04]} 18. cxd5 {[%clk 0:02:01]}  Rxd5 {[%clk 0:01:05]} 19. Qc2 {[%clk 0:01:51]}  Rxd4 {[%clk 0:01:05]} 20. Qxc7+ {[%clk 0:01:51]}  Ka8 {[%clk 0:00:51]} 21. Bxa6 {[%clk 0:01:35]}  bxa6 {[%clk 0:00:45]} 22. Qc6+ {[%clk 0:01:35]}  Ka7 {[%clk 0:00:39]} 23. Qc7+ {[%clk 0:01:35]}  Ka8 {[%clk 0:00:40]} 24. Qc6+ {[%clk 0:01:35]}  Ka7 {[%clk 0:00:40]} 25. Qc7+ {[%clk 0:01:36]}  Ka8 {[%clk 0:00:41]} 1/2-1/2


[Site "https://www.chess.com"]

[Event "Titled Tuesday Blitz November 30 2021"]
[White "Krallis, Christos"]
[Black "Deac, Bogdan-Daniel"]
[WhiteFideId "4298896"]
[BlackFideId "1226380"]
[WhiteElo "2227"]
[BlackElo "2605"]
[Result "0-1"]
[Round "01"]
[TimeControl "180+1"]
[Date "2021.11.30"]
[WhiteClock "0:00:08"]
[BlackClock "0:00:12"]

1. d4 {[%clk 0:02:59]}  Nf6 {[%clk 0:02:59]} 2. Nf3 {[%clk 0:02:59]}  d5 {[%clk 0:02:59]} 3. c4 {[%clk 0:02:59]}  e6 {[%clk 0:02:59]} 4. Nc3 {[%clk 0:02:59]}  dxc4 {[%clk 0:02:45]} 5. e3 {[%clk 0:02:58]}  a6 {[%clk 0:02:41]} 6. a4 {[%clk 0:02:58]}  c5 {[%clk 0:02:39]} 7. Bxc4 {[%clk 0:02:57]}  Nc6 {[%clk 0:02:40]} 8. O-O {[%clk 0:02:57]}  Be7 {[%clk 0:02:40]} 9. Qe2 {[%clk 0:02:57]}  O-O {[%clk 0:02:40]} 10. Rd1 {[%clk 0:02:56]}  Qc7 {[%clk 0:02:40]} 11. dxc5 {[%clk 0:02:43]}  Bxc5 {[%clk 0:02:38]} 12. Bd2 {[%clk 0:02:34]}  b6 {[%clk 0:02:35]} 13. Rac1 {[%clk 0:02:32]}  Bb7 {[%clk 0:02:35]} 14. Be1 {[%clk 0:02:33]}  Ne5 {[%clk 0:02:20]} 15. Nxe5 {[%clk 0:02:18]}  Qxe5 {[%clk 0:02:21]} 16. h3 {[%clk 0:02:03]}  Rfc8 {[%clk 0:02:14]} 17. Bd3 {[%clk 0:01:59]}  h6 {[%clk 0:01:57]} 18. Bb1 {[%clk 0:01:57]}  a5 {[%clk 0:01:48]} 19. Nb5 {[%clk 0:01:51]}  Qg5 {[%clk 0:01:09]} 20. e4 {[%clk 0:01:38]}  Bxf2+ {[%clk 0:01:00]} 21. Bxf2 {[%clk 0:01:22]}  Rxc1 {[%clk 0:01:00]} 22. Nc3 {[%clk 0:00:53]}  Rd8 {[%clk 0:00:39]} 23. Rxc1 {[%clk 0:00:32]}  Qxc1+ {[%clk 0:00:37]} 24. Kh2 {[%clk 0:00:33]}  Rd2 {[%clk 0:00:35]} 25. Qe3 {[%clk 0:00:11]}  Qxb2 {[%clk 0:00:32]} 26. Nd1 {[%clk 0:00:11]}  Qb4 {[%clk 0:00:16]} 27. Nc3 {[%clk 0:00:09]}  Rxf2 {[%clk 0:00:14]} 28. Qxf2 {[%clk 0:00:10]}  Qxc3 {[%clk 0:00:15]} 29. Qe2 {[%clk 0:00:09]}  Qe5+ {[%clk 0:00:13]} 30. Kg1 {[%clk 0:00:09]}  Bxe4 {[%clk 0:00:13]} 31. Qe3 {[%clk 0:00:08]}  Qc5 {[%clk 0:00:12]} 0-1


[Site "https://www.chess.com"]